bitfinex/quotes_BTCUSD_20251016
["timestamp","ask_amount","ask_price","bid_price","bid_amount"]
[1760628682952,0.15554728,110130.0,110100.0,0.18165304]
[1760628683281,0.09508,110120.0,110110.0,0.18163641]
[1760628683486,0.01,110120.0,110110.0,0.18163641]
[1760628683890,0.09504,110120.0,110110.0,0.18163641]
[1760628684093,0.09504,110120.0,110100.0,0.19073569]
[1760628684301,0.27666089,110120.0,110100.0,0.18165169]
[1760628684504,0.29574189,110120.0,110090.0,0.19129985]
[1760628684712,0.01,110120.0,110110.0,0.18163654]
[1760628684922,0.09504,110120.0,110090.0,0.19129985]
[1760628685132,0.09504,110120.0,110110.0,0.18163654]
[1760628685774,0.00158171,110130.0,110120.0,0.18162005]
[1760628685981,0.23662171,110130.0,110120.0,0.18162005]
[1760628686217,0.25311305,110130.0,110110.0,0.18163654]
[1760628686422,0.23662171,110130.0,110120.0,0.18162005]
[1760628686648,0.15807372,110130.0,110120.0,0.33041592]
[1760628686863,0.14158171,110130.0,110120.0,0.18221592]
[1760628687078,0.00158171,110130.0,110120.0,0.18221592]
[1760628687285,0.21852962,110160.0,110140.0,0.18158407]
[1760628687492,0.0015814,110150.0,110140.0,0.18158407]
[1760628687703,0.0015814,110150.0,110140.0,0.55261303]
[1760628687916,0.04509892,110180.0,110160.0,0.1815541]
[1760628687917,0.24560721,110180.0,110160.0,0.1815541]
[1760628688125,0.06566694,110180.0,110170.0,0.18153762]
[1760628688340,0.15392773,110180.0,110170.0,0.18153762]
[1760628688582,0.23040042,110180.0,110150.0,0.18157054]
[1760628688799,0.29790244,110180.0,110160.0,0.18155351]
[1760628689010,0.09496,110170.0,110160.0,0.18155351]
[1760628689218,0.02442743,110180.0,110170.0,0.18153762]
[1760628689426,0.37944171,110180.0,110160.0,0.18155351]
[1760628689635,0.37944171,110180.0,110150.0,0.2803371]
[1760628689860,0.28448171,110180.0,110150.0,0.08969012]
[1760628690068,0.27646142,110170.0,110150.0,0.18156818]
[1760628690303,0.31196587,110170.0,110150.0,0.18156817]
[1760628690740,0.13042817,110170.0,110150.0,0.18156817]
[1760628690945,0.32103408,110170.0,110130.0,0.19066711]
[1760628691170,0.32103408,110170.0,110140.0,0.1815859]
[1760628691171,0.27647482,110160.0,110140.0,0.1815859]
[1760628691360,0.22705833,110160.0,110140.0,0.18158668]
[1760628691593,0.09492,110150.0,110140.0,0.18158668]
[1760628691796,0.11143181,110150.0,110140.0,0.18158668]
[1760628692440,0.11143181,110150.0,110140.0,0.21776896]
[1760628692441,0.01651181,110150.0,110140.0,0.21776896]
[1760628692646,0.25518305,110180.0,110150.0,0.18157058]
[1760628692858,0.27642101,110170.0,110150.0,0.18157058]
[1760628693074,0.1815541,110160.0,110140.0,0.22684831]
[1760628693286,0.09488,110150.0,110140.0,0.34]
[1760628693493,0.11140954,110150.0,110140.0,0.52158707]
[1760628694156,0.09488,110150.0,110140.0,0.52158707]
[1760628694373,0.09484,110150.0,110140.0,0.52158707]
[1760628694589,0.01898701,110170.0,110160.0,0.1815541]
[1760628694781,0.13032069,110170.0,110160.0,0.1815541]
[1760628695354,0.13190176,110170.0,110160.0,0.1815541]
[1760628695920,0.32344054,110170.0,110150.0,0.18157058]
[1760628696122,0.32344026,110170.0,110150.0,0.18157058]
[1760628696454,0.14190176,110170.0,110150.0,0.18157058]
[1760628696872,0.04710176,110170.0,110150.0,0.18157058]
[1760628697151,0.09476,110160.0,110150.0,0.18157058]
[1760628697568,0.00158107,110170.0,110160.0,0.1815541]
[1760628697783,0.09630107,110170.0,110160.0,0.5215541]
[1760628698020,0.11282654,110170.0,110160.0,0.55773638]
[1760628698241,0.00158107,110170.0,110160.0,0.55773638]
[1760628698446,0.00385941,110180.0,110170.0,0.18153762]
[1760628698660,0.15038587,110180.0,110170.0,0.52153762]
[1760628698862,0.24510587,110180.0,110170.0,0.52153762]
[1760628699073,0.15038587,110180.0,110170.0,0.52153762]
[1760628699501,0.13385941,110180.0,110170.0,1.30486455]
[1760628699719,0.00385941,110180.0,110170.0,1.39455467]
[1760628701336,0.00385941,110180.0,110170.0,0.64741002]
[1760628703888,0.00385941,110180.0,110170.0,0.4658724]
[1760628704093,0.00385941,110180.0,110170.0,0.1258724]
[1760628704530,0.00385941,110180.0,110170.0,0.30741002]
[1760628705238,0.00385941,110180.0,110170.0,1.20275467]
[1760628705495,0.00385941,110180.0,110170.0,1.39455467]
[1760628706136,0.00385941,110180.0,110170.0,1.48903467]
[1760628706556,0.00385941,110180.0,110170.0,1.63723467]
[1760628706767,0.00385941,110180.0,110170.0,1.48903467]
[1760628708037,0.00385941,110180.0,110170.0,0.74189002]
[1760628708459,0.00385941,110180.0,110170.0,0.70570774]
[1760628708660,0.00385941,110180.0,110170.0,1.39455467]
[1760628709099,0.01798804,110210.0,110200.0,0.1814882]
[1760628709335,0.16468054,110210.0,110200.0,0.1814882]
[1760628709553,0.15497105,110210.0,110200.0,0.1814882]
[1760628709768,0.24933105,110210.0,110200.0,0.1814882]
[1760628709985,0.24933105,110210.0,110200.0,0.21767048]
[1760628710201,0.15497105,110210.0,110200.0,0.3073606]
[1760628710349,0.13014987,110210.0,110200.0,0.3073606]
[1760628710562,0.1550074,110210.0,110200.0,1.16144129]
[1760628710768,0.14672156,110210.0,110200.0,1.16144129]
[1760628710950,0.01672156,110210.0,110200.0,0.5214882]
[1760628711150,0.12104156,110210.0,110200.0,0.5214882]
[1760628711393,0.02672156,110210.0,110200.0,0.5214882]
[1760628711624,0.1293688,110210.0,110200.0,0.5214882]
[1760628711933,0.1814882,110200.0,110180.0,0.67289522]
[1760628712169,0.01657169,110200.0,110190.0,0.52150277]
[1760628712406,0.29237989,110200.0,110190.0,0.52150277]
[1760628712618,0.29237989,110200.0,110180.0,0.28024059]
[1760628712815,0.11089169,110200.0,110190.0,0.52150467]
[1760628713690,0.01657169,110200.0,110190.0,0.55768695]
[1760628714828,0.19805989,110200.0,110190.0,0.37618228]
[1760628715096,0.19805989,110200.0,110190.0,0.34]
[1760628715323,0.19925048,110200.0,110190.0,0.34]
[1760628715529,0.31252745,110200.0,110190.0,0.34]
[1760628715771,0.33252745,110200.0,110180.0,0.30313124]
[1760628715998,0.33252745,110200.0,110170.0,0.22679678]
[1760628715999,0.33133686,110200.0,110170.0,0.03618228]
[1760628716235,0.33133686,110200.0,110170.0,0.34761305]
[1760628716490,0.38354015,110200.0,110180.0,0.18152114]
[1760628716737,0.33133686,110200.0,110180.0,0.18152114]
[1760628716985,0.18152168,110180.0,110160.0,0.19062907]
[1760628717222,0.18152168,110180.0,110170.0,0.18153762]
[1760628717223,0.01657169,110180.0,110170.0,0.18153762]
[1760628717454,0.01903697,110190.0,110180.0,0.18152114]
[1760628717680,0.31144636,110190.0,110180.0,0.18152114]
[1760628717912,0.43144636,110190.0,110170.0,0.52153762]
[1760628718145,0.43144636,110190.0,110170.0,0.34]
[1760628718384,0.12,110190.0,110180.0,0.18152114]
[1760628718609,0.18306895,110200.0,110180.0,0.18152114]
[1760628718844,0.30306895,110200.0,110180.0,0.18152114]
[1760628719079,0.30307602,110200.0,110180.0,0.32972114]
[1760628719547,0.18150467,110190.0,110180.0,0.18152114]
[1760628719775,0.01,110190.0,110180.0,0.18152114]
[1760628720022,0.00158075,110200.0,110190.0,0.18150467]
[1760628720267,0.05989458,110200.0,110190.0,0.18150467]
[1760628720504,0.05158075,110200.0,110190.0,0.66384942]
[1760628720778,0.00158075,110200.0,110190.0,1.27792182]
[1760628720975,0.00014987,110210.0,110200.0,0.1814882]
[1760628721184,0.00014987,110210.0,110200.0,0.1482]
[1760628721185,0.29993563,110210.0,110200.0,0.1482]
[1760628721389,5.39217662,110210.0,110170.0,0.18022071]
[1760628721590,0.18152114,110180.0,110160.0,0.1482]
[1760628721798,0.31152114,110180.0,110160.0,0.3297541]
[1760628722018,0.31152114,110180.0,110160.0,0.1482]
[1760628722251,0.18153762,110170.0,110150.0,0.34]
[1760628722445,0.19061082,110190.0,110160.0,0.18155376]
[1760628722653,0.19061082,110190.0,110170.0,0.1815373]
[1760628722654,0.31893403,110190.0,110170.0,0.1815373]
[1760628722842,0.31893403,110190.0,110160.0,0.19063146]
[1760628723076,0.31893403,110190.0,110170.0,0.18153635]
[1760628723278,0.30982788,110190.0,110170.0,0.18153635]
[1760628723480,0.30997769,110190.0,110170.0,0.18153635]
[1760628723690,0.30997769,110190.0,110160.0,0.19063146]
[1760628723691,0.12007797,110180.0,110160.0,0.19063146]
[1760628723898,0.18154214,110170.0,110150.0,0.52156779]
[1760628724110,0.31154214,110170.0,110150.0,0.1482]
[1760628724323,0.1815541,110160.0,110150.0,0.1482]
[1760628724548,0.3115541,110160.0,110150.0,0.1482]
[1760628724783,0.13,110160.0,110150.0,0.32977058]
[1760628725010,0.3115541,110160.0,110150.0,0.1482]
[1760628725620,0.13,110160.0,110150.0,0.18157058]
[1760628725834,0.13,110160.0,110150.0,0.66391533]
[1760628726048,0.21016818,110180.0,110160.0,0.18154453]
[1760628726259,0.11956905,110180.0,110170.0,0.66388237]
[1760628726668,0.11956905,110180.0,110160.0,0.18154453]
[1760628726669,0.28310252,110180.0,110160.0,0.18155212]
[1760628726884,0.10158101,110180.0,110170.0,0.18153762]
[1760628727111,0.10158101,110180.0,110170.0,1.12975477]
[1760628727112,0.1,110180.0,110170.0,1.12975477]
[1760628727323,0.00014981,110190.0,110180.0,0.55770342]
[1760628727572,0.00014981,110190.0,110180.0,1.12973829]
[1760628728823,0.00014981,110190.0,110180.0,0.64739354]
[1760628729051,0.00014981,110190.0,110180.0,0.78973829]
[1760628729458,0.00848433,110190.0,110180.0,0.78973829]
[1760628729783,0.00014981,110190.0,110180.0,1.12973829]
[1760628730198,0.0360171,110190.0,110180.0,1.12973829]
[1760628730648,0.0360171,110190.0,110180.0,1.22381829]
[1760628731104,0.01681666,110190.0,110180.0,1.22381829]
[1760628731326,0.00014981,110190.0,110180.0,1.22381829]
[1760628731541,1e-08,110190.0,110180.0,1.22381829]
[1760628732205,1e-08,110190.0,110180.0,0.74147354]
[1760628732404,0.04143427,110240.0,110230.0,0.1814388]
[1760628732603,0.34516866,110240.0,110230.0,0.1814388]
[1760628732853,0.34516866,110240.0,110220.0,0.18144063]
[1760628733233,0.34358834,110240.0,110220.0,0.18144063]
[1760628734860,0.13015001,110240.0,110230.0,1.12965595]
[1760628735904,0.13015001,110240.0,110230.0,0.34]
[1760628736113,0.13015001,110240.0,110230.0,0.1814388]
[1760628736288,0.13015001,110240.0,110230.0,0.66378355]
[1760628736933,0.13015001,110240.0,110230.0,0.1814388]
[1760628737142,0.31157236,110240.0,110220.0,0.48234475]
[1760628737354,0.31157236,110240.0,110220.0,0.52145525]
[1760628737768,0.31157236,110240.0,110220.0,1.0038]
[1760628738022,0.31157236,110240.0,110230.0,0.1814388]
[1760628738234,0.13312526,110240.0,110220.0,1.0038]
[1760628738452,0.13312526,110240.0,110230.0,0.1814388]
[1760628738667,0.13312526,110240.0,110230.0,0.78965595]
[1760628738890,0.13015001,110240.0,110230.0,0.78965595]
[1760628739109,0.31157236,110240.0,110230.0,0.03618228]
[1760628739359,0.31157236,110240.0,110220.0,0.52145525]
[1760628739571,0.31157236,110240.0,110220.0,0.52145457]
[1760628740010,0.1814388,110230.0,110200.0,0.19055922]
[1760628740226,0.1814388,110230.0,110180.0,0.18152114]
[1760628740227,0.19054778,110210.0,110180.0,0.18152114]
[1760628740441,0.31054778,110210.0,110190.0,0.1815019]
[1760628740885,0.31212824,110210.0,110190.0,0.1815019]
[1760628741099,0.31212824,110210.0,110190.0,0.18150467]
[1760628741544,0.12158046,110210.0,110200.0,0.1814882]
[1760628741753,0.00158046,110210.0,110190.0,0.84753364]
[1760628741938,0.08158046,110210.0,110200.0,0.1814882]
[1760628742193,0.08,110210.0,110200.0,0.1814882]
[1760628742410,0.08,110210.0,110190.0,0.27118889]
[1760628742624,0.08,110210.0,110200.0,0.78970535]
[1760628742834,0.08,110210.0,110200.0,0.3073606]
[1760628743046,0.26147173,110210.0,110200.0,0.1814882]
[1760628743257,0.30576452,110210.0,110190.0,0.52149763]
[1760628743467,0.26147173,110210.0,110190.0,0.18150467]
[1760628743706,0.26147173,110210.0,110200.0,0.1814882]
[1760628743918,0.08,110210.0,110200.0,0.1814882]
[1760628744333,0.00119042,110210.0,110200.0,0.70001523]
[1760628744961,0.00119042,110210.0,110200.0,1.04001523]
[1760628745169,0.00119042,110210.0,110200.0,0.55767048]
[1760628745383,0.00119042,110210.0,110200.0,0.21767048]
[1760628745596,0.00119042,110210.0,110200.0,0.70001523]
[1760628746052,0.00119042,110210.0,110200.0,1.6120501]
[1760628746270,0.00119042,110210.0,110200.0,0.6473606]
[1760628746481,0.00119042,110210.0,110200.0,0.7414406]
[1760628746690,0.00119042,110210.0,110200.0,1.12970535]
[1760628747607,0.00119042,110210.0,110200.0,0.6473606]
[1760628747816,0.00119042,110210.0,110200.0,1.12970535]
[1760628748677,0.00119042,110210.0,110200.0,0.6473606]
[1760628748878,0.00119042,110210.0,110200.0,1.12970535]
[1760628749513,0.00158023,110230.0,110200.0,1.6120501]
[1760628749733,0.01813805,110240.0,110230.0,0.55762108]
[1760628749953,0.01813805,110240.0,110230.0,1.22369595]
[1760628750371,0.001935,110240.0,110230.0,1.22369595]
[1760628751241,0.001935,110240.0,110230.0,1.7060407]
[1760628751878,0.0002,110250.0,110240.0,0.21760463]
[1760628752094,0.01798804,110260.0,110250.0,1.00375064]
[1760628752302,0.01798804,110260.0,110250.0,1.22374304]
[1760628752511,0.01818804,110280.0,110270.0,0.21755527]
[1760628752756,0.12833799,110280.0,110270.0,0.21755527]
[1760628752963,0.11034995,110280.0,110270.0,1.22371014]
[1760628753200,0.00034995,110280.0,110270.0,1.22371014]
[1760628753841,0.00034995,110280.0,110270.0,1.70605489]
[1760628754050,0.00034995,110280.0,110270.0,1.22371014]
[1760628754275,0.00034995,110280.0,110270.0,1.2273451]
[1760628754514,0.00034995,110280.0,110270.0,1.25414429]
[1760628754724,0.00034995,110280.0,110270.0,1.25050933]
[1760628754932,0.00034995,110280.0,110270.0,1.25058933]
[1760628755163,0.00034995,110280.0,110270.0,0.76824458]
[1760628755375,0.00034995,110280.0,110270.0,1.15638933]
[1760628755585,0.00034995,110280.0,110270.0,1.25058933]
[1760628757711,0.00272875,110280.0,110270.0,1.25058933]
[1760628758152,0.00272875,110280.0,110270.0,1.73293408]
[1760628758596,0.0002,110290.0,110280.0,1.52222832]
[1760628758782,1e-08,110290.0,110280.0,1.61191844]
[1760628759456,1e-08,110290.0,110280.0,6.61191844]
[1760628760385,1e-08,110290.0,110280.0,6.70603844]
[1760628760818,0.01798804,110320.0,110310.0,0.52130722]
[1760628761139,0.01848777,110320.0,110310.0,1.18742209]
[1760628761351,0.00049973,110320.0,110310.0,1.18742209]
[1760628762641,0.0002,110330.0,110320.0,1.18216257]
[1760628762866,0.00034986,110330.0,110320.0,1.61185269]
[1760628763304,0.00034986,110330.0,110320.0,0.64716319]
[1760628763522,0.00034986,110330.0,110320.0,1.61185269]
[1760628764377,1e-08,110330.0,110320.0,6.61185269]
[1760628764602,0.0002,110340.0,110330.0,0.55745663]
[1760628764846,0.0002,110340.0,110330.0,1.1294915]
[1760628765522,0.0002,110340.0,110330.0,1.2237315]
[1760628765946,0.0002,110340.0,110330.0,0.74138675]
[1760628766368,0.1812554,110360.0,110340.0,0.18125793]
[1760628766588,0.3112554,110360.0,110340.0,0.7532928]
[1760628766767,0.3112554,110360.0,110350.0,0.1812415]
[1760628767227,0.3112554,110360.0,110340.0,0.27094805]
[1760628767519,0.13,110360.0,110350.0,0.1812415]
[1760628767728,0.1315783,110360.0,110350.0,0.66358625]
[1760628767943,0.1315783,110360.0,110350.0,1.12945865]
[1760628768156,0.1315783,110360.0,110350.0,0.6471139]
[1760628768363,0.1315783,110360.0,110350.0,0.7412739]
[1760628768635,0.1315783,110360.0,110350.0,1.12945865]
[1760628768841,0.1315783,110360.0,110350.0,1.22365865]
[1760628769044,0.13633159,110360.0,110350.0,1.22365865]
[1760628769464,0.13633159,110360.0,110350.0,0.1812415]
[1760628769882,0.31755667,110360.0,110350.0,0.1812415]
[1760628770106,0.13633159,110360.0,110350.0,0.1812415]
[1760628771247,0.13633159,110360.0,110350.0,0.66358625]
[1760628771450,0.13633159,110360.0,110350.0,1.0513311]
[1760628771675,0.13633159,110360.0,110350.0,1.3913311]
[1760628772331,0.13633159,110360.0,110350.0,0.61093162]
[1760628772576,0.13633159,110360.0,110320.0,0.19035532]
[1760628772577,0.1812415,110350.0,110320.0,0.19035532]
[1760628772795,0.2812415,110350.0,110330.0,0.42969012]
[1760628772997,0.2812415,110350.0,110340.0,0.18125793]
[1760628773228,0.2812415,110350.0,110330.0,0.61096356]
[1760628773441,0.2812415,110350.0,110340.0,0.18125793]
[1760628773906,0.2812415,110350.0,110330.0,0.61096356]
[1760628774326,0.2812415,110350.0,110330.0,0.27096356]
[1760628774542,0.2812415,110350.0,110340.0,0.18125793]
[1760628775412,0.1812089,110370.0,110350.0,0.1812415]
[1760628775637,0.18122508,110360.0,110350.0,0.1812415]
[1760628775856,0.31122508,110360.0,110340.0,0.18125793]
[1760628776074,0.1812415,110350.0,110340.0,0.18125793]
[1760628776316,0.1912415,110350.0,110340.0,0.18125793]
[1760628776832,0.01,110350.0,110340.0,0.18125793]
[1760628777429,0.19281989,110350.0,110340.0,0.18125793]
[1760628777638,0.01157839,110350.0,110340.0,0.18125793]
[1760628779002,0.2112415,110350.0,110340.0,0.18125793]
[1760628779203,0.2112415,110350.0,110330.0,1.02424447]
[1760628779403,0.215401,110350.0,110330.0,0.62002727]
[1760628779592,0.2112415,110350.0,110340.0,0.18125793]
[1760628779802,0.03,110350.0,110340.0,0.18125793]
[1760628780228,0.0341595,110350.0,110340.0,0.92547513]
[1760628780459,0.215401,110350.0,110330.0,0.42969012]
[1760628780658,0.26012404,110350.0,110320.0,0.02667375]
[1760628780926,0.18127435,110330.0,110300.0,0.19038984]
[1760628781041,0.18129079,110320.0,110300.0,0.27101169]
[1760628781241,0.18127435,110330.0,110310.0,0.18130722]
[1760628781454,0.30127435,110330.0,110320.0,0.18129079]
[1760628781873,0.18129079,110320.0,110300.0,0.28007787]
[1760628782080,0.22129079,110320.0,110300.0,0.1818222]
[1760628782294,0.18130722,110310.0,110300.0,0.00049973]
[1760628782511,0.22130722,110310.0,110300.0,0.00049973]
[1760628783607,0.22130722,110310.0,110300.0,0.18182339]
[1760628783987,0.22130722,110310.0,110300.0,0.00049973]
[1760628784408,0.26156702,110310.0,110300.0,0.00049973]
[1760628784681,0.22130722,110310.0,110300.0,0.00049973]
[1760628784886,0.22288636,110310.0,110300.0,0.00049973]
[1760628785308,5.56288636,110310.0,110300.0,0.00049973]
[1760628785508,5.58207337,110310.0,110300.0,0.00049973]
[1760628785707,5.67175545,110310.0,110300.0,0.00049973]
[1760628786256,5.70793773,110310.0,110300.0,0.00049973]
[1760628786459,5.80490605,110310.0,110300.0,0.00049973]
[1760628786643,5.80648559,110310.0,110300.0,0.00049973]
[1760628786865,5.80648559,110310.0,110300.0,1e-08]
[1760628787074,5.83860265,110310.0,110300.0,1e-08]
[1760628787719,5.81481055,110310.0,110300.0,1e-08]
[1760628787937,5.52138944,110260.0,110250.0,0.01798804]
[1760628788165,5.70118056,110260.0,110250.0,0.0181379]
[1760628788369,5.67722697,110260.0,110250.0,0.00014986]
[1760628788586,5.67880688,110260.0,110250.0,0.00014986]
[1760628788821,5.74658249,110260.0,110250.0,0.00014986]
[1760628789018,5.67880688,110260.0,110250.0,0.00014986]
[1760628789244,5.66215636,110260.0,110250.0,0.00014986]
[1760628790547,0.12157991,110260.0,110250.0,0.18155575]
[1760628790787,0.30296935,110260.0,110250.0,0.00014986]
[1760628790998,0.12157991,110260.0,110250.0,0.18155575]
[1760628791211,0.30296935,110260.0,110250.0,0.00014986]
[1760628791631,0.3517307,110260.0,110250.0,0.00014986]
[1760628792315,5.6917307,110260.0,110250.0,1e-08]
[1760628792762,5.64138944,110260.0,110250.0,1e-08]
[1760628793189,0.12,110260.0,110250.0,1e-08]
[1760628793441,0.30138944,110260.0,110250.0,1e-08]
[1760628794087,0.14553682,110260.0,110250.0,1e-08]
[1760628794303,5.48553682,110260.0,110250.0,1e-08]
[1760628795155,5.48711694,110260.0,110250.0,1e-08]
[1760628797246,0.03158012,110260.0,110250.0,1e-08]
[1760628797478,0.03158012,110260.0,110250.0,0.1814059]
[1760628797686,0.21296956,110260.0,110250.0,1e-08]
[1760628798370,5.55296956,110260.0,110250.0,1e-08]
[1760628798609,5.64265164,110260.0,110250.0,1e-08]
[1760628800306,5.55296956,110260.0,110250.0,1e-08]
[1760628800535,0.55296956,110260.0,110250.0,1e-08]
[1760628801004,5.55296956,110260.0,110250.0,1e-08]
[1760628801469,0.55296956,110260.0,110250.0,1e-08]
[1760628801710,0.21296956,110260.0,110250.0,1e-08]
[1760628801949,0.55138944,110260.0,110250.0,1e-08]
[1760628802215,0.21138944,110260.0,110250.0,1e-08]
[1760628802456,0.21138944,110260.0,110250.0,0.1814059]
[1760628802928,0.21138944,110260.0,110250.0,1e-08]
[1760628803423,0.03,110260.0,110250.0,0.1814059]
[1760628803676,0.03,110260.0,110250.0,0.94376368]
[1760628803924,0.03,110260.0,110250.0,1.3914955]
[1760628804167,0.18351593,110290.0,110270.0,0.18136682]
[1760628804367,0.30351593,110290.0,110270.0,0.18136682]
[1760628804862,0.37294739,110290.0,110260.0,0.18138852]
[1760628805072,0.18137299,110270.0,110250.0,0.19047619]
[1760628805302,0.12,110270.0,110260.0,0.18138944]
[1760628806138,0.30137299,110270.0,110260.0,0.18138944]
[1760628806553,0.30137299,110270.0,110250.0,0.19047619]
[1760628806763,0.12,110270.0,110260.0,0.18138944]
[1760628806974,0.12157957,110270.0,110260.0,0.18138944]
[1760628807183,0.30295256,110270.0,110260.0,0.18138944]
[1760628807390,0.12157957,110270.0,110260.0,0.18138944]
[1760628807597,0.30295256,110270.0,110260.0,0.18138944]
[1760628807809,0.12157957,110270.0,110260.0,0.18138944]
[1760628808049,0.12157957,110270.0,110260.0,0.17991744]
[1760628808746,0.30295256,110270.0,110260.0,0.18138944]
[1760628808956,0.30295256,110270.0,110250.0,1e-08]
[1760628808957,0.18138944,110260.0,110250.0,1e-08]
[1760628809185,0.19138944,110260.0,110250.0,1e-08]
[1760628809395,0.19138944,110260.0,110250.0,0.1814059]
[1760628809825,0.01,110260.0,110250.0,0.1814059]
[1760628810036,0.19138944,110260.0,110250.0,0.1814059]
[1760628811117,0.01,110260.0,110250.0,0.1814059]
[1760628811335,0.00157957,110270.0,110260.0,0.18138944]
[1760628811551,0.30295256,110270.0,110260.0,0.18138944]
[1760628812484,0.30137299,110270.0,110260.0,0.18138944]
[1760628812693,0.22137299,110270.0,110260.0,0.18138944]
[1760628813367,0.04,110270.0,110260.0,0.18138944]
[1760628813603,0.20103817,110290.0,110270.0,0.18135764]
[1760628813814,0.29193694,110290.0,110280.0,0.18135654]
[1760628814505,0.29193694,110290.0,110270.0,0.18135764]
[1760628814726,0.18135654,110280.0,110270.0,0.32957299]
[1760628814983,0.31135654,110280.0,110270.0,0.32957299]
[1760628815227,0.13,110280.0,110270.0,0.32957299]
[1760628818177,0.13,110280.0,110270.0,1.07379019]
[1760628818394,0.00217394,110290.0,110280.0,0.18135654]
[1760628818616,0.12217394,110290.0,110280.0,0.92557374]
[1760628819059,0.12217394,110290.0,110280.0,0.18135654]
[1760628819700,0.30351404,110290.0,110280.0,0.32955654]
[1760628819903,0.12217394,110290.0,110280.0,0.32955654]
[1760628821590,0.30351404,110290.0,110280.0,0.32955654]
[1760628821838,0.30351404,110290.0,110280.0,0.1482]
[1760628822034,0.35390844,110290.0,110280.0,0.1482]
[1760628822466,0.32261527,110290.0,110280.0,0.1482]
[1760628822679,0.66261527,110290.0,110280.0,0.1482]
[1760628823948,0.18135654,110280.0,110270.0,0.18137199]
[1760628824164,0.30135654,110280.0,110270.0,0.18137199]
[1760628825211,0.12,110280.0,110270.0,0.18137199]
[1760628825590,0.32045777,110280.0,110270.0,0.18137199]
[1760628826171,0.13910123,110280.0,110270.0,0.18137199]
[1760628826397,0.01910123,110280.0,110270.0,0.18137199]
[1760628827569,0.01910123,110280.0,110270.0,0.92558919]
[1760628827949,0.02127517,110290.0,110280.0,0.18135654]
[1760628828149,0.05127517,110290.0,110280.0,0.18135654]
[1760628828360,0.05127517,110290.0,110280.0,0.32955654]
[1760628828918,0.28222418,110290.0,110260.0,0.93467459]
[1760628829113,0.18137299,110270.0,110260.0,0.18138306]
[1760628829318,0.29055394,110270.0,110260.0,0.18138944]
[1760628829734,0.10918095,110270.0,110260.0,0.18138944]
[1760628829885,0.02076047,110270.0,110260.0,0.18138944]
[1760628830105,0.03076047,110270.0,110260.0,0.18138944]
[1760628830813,0.02076047,110270.0,110260.0,0.18138944]
[1760628831160,0.01918095,110270.0,110260.0,0.18138944]
[1760628831602,0.01918095,110270.0,110260.0,0.66317445]
[1760628831811,0.01918095,110270.0,110260.0,0.18138944]
[1760628832862,0.21055394,110270.0,110260.0,0.18138944]
[1760628833073,0.21055394,110270.0,110250.0,0.66319091]
[1760628833283,0.21055394,110270.0,110250.0,0.1814059]
[1760628833931,0.18138944,110260.0,110250.0,1e-08]
[1760628834143,0.33057039,110260.0,110250.0,1e-08]
[1760628834358,0.31138944,110260.0,110250.0,1e-08]
[1760628834571,0.31138944,110260.0,110250.0,0.1814059]
[1760628834994,0.13,110260.0,110250.0,0.1814059]
[1760628835237,0.13157973,110260.0,110250.0,0.1814059]
[1760628835663,0.13157973,110260.0,110250.0,0.66319091]
[1760628835881,0.00157973,110260.0,110250.0,0.66319091]
[1760628836087,0.00157973,110260.0,110250.0,0.75288103]
[1760628836706,0.18135654,110280.0,110270.0,0.18136026]
[1760628836922,0.18135654,110280.0,110260.0,0.48178501]
[1760628837146,0.18137299,110270.0,110250.0,0.28016631]
[1760628837362,0.23137299,110270.0,110260.0,0.18138944]
[1760628837565,0.05,110270.0,110260.0,0.18138944]
[1760628838049,0.23137299,110270.0,110260.0,0.18138944]
[1760628839109,0.23137299,110270.0,110250.0,0.19047619]
[1760628839110,0.18138944,110260.0,110250.0,1e-08]
[1760628839318,0.18138944,110260.0,110250.0,0.14820001]
[1760628839319,0.31138944,110260.0,110250.0,0.14820001]
[1760628839521,0.13,110260.0,110250.0,0.34774648]
[1760628839743,0.13,110260.0,110250.0,0.3296059]
[1760628839938,0.13157972,110260.0,110250.0,0.3296059]
[1760628840140,0.13157972,110260.0,110250.0,0.81139091]
[1760628840356,0.23407855,110290.0,110270.0,0.18137299]
[1760628840566,0.18137299,110270.0,110260.0,0.32958944]
[1760628840774,0.31137299,110270.0,110260.0,0.1482]
[1760628840985,0.31137299,110270.0,110260.0,0.32958944]
[1760628841394,0.13,110270.0,110260.0,0.32958944]
[1760628841641,0.31137299,110270.0,110260.0,0.32958944]
[1760628841827,0.36155273,110270.0,110260.0,0.1482]
[1760628842039,0.70155273,110270.0,110260.0,0.1482]
[1760628842259,0.65137299,110270.0,110260.0,0.1482]
[1760628844499,0.65295275,110270.0,110260.0,0.1482]
[1760628844726,0.18138944,110260.0,110250.0,1e-08]
[1760628844949,0.31138944,110260.0,110250.0,1e-08]
[1760628845162,0.39482366,110260.0,110250.0,1e-08]
[1760628845789,0.31138944,110260.0,110250.0,1e-08]
[1760628846429,0.65138944,110260.0,110250.0,1e-08]
[1760628847383,0.64638944,110260.0,110250.0,1e-08]
[1760628848680,5.64638944,110260.0,110250.0,1e-08]
[1760628850929,0.64638944,110260.0,110250.0,1e-08]
[1760628851138,0.31138944,110260.0,110250.0,1e-08]
[1760628851582,0.31138944,110260.0,110250.0,0.1814059]
[1760628851583,0.13,110260.0,110250.0,0.1814059]
[1760628851798,0.13,110260.0,110250.0,0.19954648]
[1760628852011,0.13,110260.0,110250.0,0.68166513]
[1760628852224,0.6,110280.0,110270.0,0.18137299]
[1760628852430,0.91135654,110280.0,110270.0,0.18137299]
[1760628853319,0.73,110280.0,110270.0,0.18137299]
[1760628854827,0.73,110280.0,110270.0,0.78936404]
[1760628855027,0.73,110280.0,110270.0,0.30724539]
[1760628855263,0.73,110280.0,110270.0,0.78936404]
[1760628855482,0.73,110280.0,110270.0,0.30724539]
[1760628856853,0.73,110280.0,110270.0,0.78936404]
[1760628858902,0.73,110280.0,110270.0,1.12936404]
[1760628859103,0.6,110280.0,110270.0,1.12936404]
[1760628859658,0.05687203,110280.0,110270.0,1.61148269]
[1760628859866,1e-08,110290.0,110280.0,0.55753882]
[1760628860076,1e-08,110290.0,110280.0,6.70470624]
[1760628860535,1e-08,110340.0,110330.0,0.18127435]
[1760628860777,0.01798804,110370.0,110360.0,0.55740287]
[1760628860994,0.13798804,110370.0,110360.0,1.12921164]
[1760628861241,0.0002,110380.0,110360.0,1.18622936]
[1760628861440,0.1002,110380.0,110370.0,0.1258724]
[1760628861703,0.28139224,110380.0,110360.0,0.08969012]
[1760628861897,0.18120866,110370.0,110340.0,0.67240818]
[1760628862099,0.19120866,110370.0,110340.0,0.37325965]
[1760628862321,0.18123932,110360.0,110330.0,0.74522133]
[1760628862538,0.04,110360.0,110330.0,0.91433992]
[1760628862757,0.22122555,110360.0,110340.0,0.18125589]
[1760628863172,0.1812415,110350.0,110330.0,0.31188918]
[1760628863379,0.1902868,110360.0,110340.0,0.18125634]